bitfinex-derivatives/quotes_BNBF0:USTF0_20250609
["timestamp","ask_amount","ask_price","bid_price","bid_amount"]
[1749437494472,0.30760712,650.18,648.95,3.83604247]
[1749437494874,0.30760712,650.18,648.96,3.83604247]
[1749437496077,0.30760712,650.18,648.97,3.83604247]
[1749437497074,0.30760712,650.18,648.98,3.83604247]
[1749437497779,1.41901371,650.18,648.98,3.83604247]
[1749437497980,1.41901371,650.18,649.02,3.83604247]
[1749437498387,1.41901371,650.18,649.03,3.83604247]
[1749437499481,0.30760712,650.18,649.05,3.83604247]
[1749437499780,0.30760712,650.18,648.9,0.3082139]
[1749437509684,0.30760712,650.18,649.08,3.83604247]
[1749437510186,0.30760712,650.18,649.06,3.83604247]
[1749437511386,0.30760712,650.18,649.08,3.83604247]
[1749437511985,0.30760712,650.18,649.09,3.83604247]
[1749437512484,0.30760712,650.18,649.08,3.83604247]
[1749437512685,1.41901371,650.18,649.09,3.83604247]
[1749437515091,0.30760712,650.18,649.09,3.83604247]
[1749437516394,0.30760712,650.18,649.11,3.83604247]
[1749437516891,0.30760712,650.18,649.19,3.83604247]
[1749437517794,1.41901371,650.18,649.19,3.83604247]
[1749437518294,1.41901371,650.18,649.18,3.83604247]
[1749437518592,1.41901371,650.18,649.14,3.83604247]
[1749437519497,0.30760712,650.18,649.14,3.83604247]
[1749437519893,0.30760712,650.18,649.2,3.83604247]
[1749437520493,0.30760712,650.18,649.21,3.83604247]
[1749437522901,0.30760712,650.18,649.2,3.83604247]
[1749437527604,0.30760712,650.18,649.22,3.83604247]
[1749437528006,1.11140659,650.17,649.22,3.83604247]
[1749437528302,1.11140659,650.16,648.94,3.83604247]
[1749437528602,1.11140659,650.15,648.96,3.83604247]
[1749437528806,1.11140659,650.14,648.96,3.83604247]
[1749437529104,1.11140659,650.13,648.94,3.83604247]
[1749437529406,1.11140659,650.17,648.94,3.83604247]
[1749437529705,1.11398335,650.16,648.94,3.83604247]
[1749437529901,1.11398335,650.15,648.94,3.83604247]
[1749437530106,1.11398335,650.14,648.95,3.83604247]
[1749437530407,1.11398335,650.13,648.94,3.83604247]
[1749437530605,1.11398335,650.17,648.94,3.83604247]
[1749437530801,1.11398335,650.16,648.94,3.83604247]
[1749437531002,1.11398335,650.15,648.9,4.14425637]
[1749437531202,1.11398335,650.14,648.9,4.14425637]
[1749437531505,1.11398335,650.13,648.9,0.3082139]
[1749437531705,1.11398335,650.12,648.9,0.3082139]
[1749437531909,1.11398335,650.11,648.9,0.3082139]
[1749437532206,1.11398335,650.1,648.95,3.83604247]
[1749437532506,1.11398335,650.09,648.95,3.83604247]
[1749437532703,1.11398335,650.08,648.92,3.83604247]
[1749437533007,1.11398335,650.15,648.92,3.83604247]
[1749437533208,1.11398335,650.14,648.92,3.83604247]
[1749437533406,1.11398335,650.13,648.92,3.83604247]
[1749437533603,1.11398335,650.12,648.92,3.83604247]
[1749437533806,1.11398335,650.11,648.92,3.83604247]
[1749437534004,1.11398335,650.1,648.92,3.83604247]
[1749437534303,1.11398335,650.09,648.92,3.83604247]
[1749437534504,1.11398335,650.15,649.02,3.83604247]
[1749437534710,1.11398335,650.14,649.02,3.83604247]
[1749437534906,1.11398335,650.13,649.01,3.83604247]
[1749437535111,1.11398335,650.12,649.01,3.83604247]
[1749437535308,1.11398335,650.11,649.01,3.83604247]
[1749437535506,1.11398335,650.1,649.01,3.83604247]
[1749437535706,1.11398335,650.09,649.01,3.83604247]
[1749437536007,1.11398335,650.15,649.01,3.83604247]
[1749437536210,1.11398335,650.14,649.01,3.83604247]
[1749437536509,1.11398335,650.13,649.01,3.83604247]
[1749437536707,1.11398335,650.12,649.01,3.83604247]
[1749437536907,1.11398335,650.11,649.01,3.83604247]
[1749437537111,1.11398335,650.1,649.01,3.83604247]
[1749437537310,1.11398335,650.09,649.01,3.83604247]
[1749437537507,1.11398335,650.08,649.01,3.83604247]
[1749437537708,1.11398335,650.15,649.01,3.83604247]
[1749437538011,1.11398335,650.15,648.9,0.3082139]
[1749437538012,1.11398335,650.14,649.02,3.83604247]
[1749437538209,1.11398335,650.13,649.02,3.83604247]
[1749437538408,1.11398335,650.12,649.02,3.83604247]
[1749437538707,1.11398335,650.11,649.02,3.83604247]
[1749437538911,1.11398335,650.1,649.02,3.83604247]
[1749437539112,1.11398335,650.09,649.02,3.83604247]
[1749437539309,1.11398335,650.15,649.02,3.83604247]
[1749437539512,1.11398335,650.14,649.02,3.83604247]
[1749437539814,1.11398335,650.13,649.02,3.83604247]
[1749437540114,1.11398335,650.12,649.02,3.83604247]
[1749437540316,1.11398335,650.11,649.03,3.83604247]
[1749437540509,1.11398335,650.1,649.03,3.83604247]
[1749437540711,1.11398335,650.15,649.03,3.83604247]
[1749437540915,1.11398335,650.14,649.06,3.83604247]
[1749437541214,1.11398335,650.13,649.06,3.83604247]
[1749437541412,1.11398335,650.12,649.06,3.83604247]
[1749437541612,1.11398335,650.11,649.07,3.83604247]
[1749437541812,1.11398335,650.1,649.07,3.83604247]
[1749437542112,0.30761658,650.16,648.9,0.3082139]
[1749437542517,0.30761658,650.16,648.92,3.83604247]
[1749437542817,0.30761658,650.16,648.93,0.30819965]
[1749437543012,0.30761658,650.16,648.94,3.83604247]
[1749437543218,0.30761658,650.16,648.95,0.30819015]
[1749437547014,0.30761658,650.16,649.06,3.83604247]
[1749437547915,0.30761658,650.16,649.07,3.83604247]
[1749437548518,0.30761658,650.16,649.11,3.83604247]
[1749437549318,0.30761658,650.16,649.18,3.83604247]
[1749437549720,0.30761658,650.16,649.26,3.83604247]
[1749437552224,0.30761658,650.16,649.27,3.83604247]
[1749437556031,0.30761658,650.16,649.14,3.83604247]
[1749437557927,0.30761658,650.16,649.11,3.83604247]
[1749437558427,0.30761658,650.16,649.09,3.83604247]
[1749437559126,0.30761658,650.16,649.1,3.83604247]
[1749437560930,0.30761658,650.16,649.07,3.83604247]
[1749437561834,0.30761658,650.16,649.01,3.83604247]
[1749437563631,0.30761658,650.16,648.99,3.83604247]
[1749437563832,0.30761658,650.16,649.0,0.3081664]
[1749437565842,0.30761658,650.16,649.05,3.83604247]
[1749437566741,0.30761658,650.16,649.06,3.83604247]
[1749437567943,0.30761658,650.16,649.08,3.83604247]
[1749437568444,0.30761658,650.16,649.11,3.83604247]
[1749437568839,0.30761658,650.16,649.1,3.83604247]
[1749437570543,0.30761658,650.16,649.13,3.83604247]
[1749437570941,0.30761658,650.16,649.12,3.83604247]
[1749437571346,0.30761658,650.16,649.13,3.83604247]
[1749437571844,0.30761658,650.16,649.24,3.83604247]
[1749437573651,0.30761658,650.16,649.26,3.83604247]
[1749437576952,0.30761658,650.16,649.24,3.83604247]
[1749437578255,0.30761658,650.16,649.25,3.83604247]
[1749437578756,0.30761658,650.16,649.26,3.83604247]
[1749437580459,0.30761658,650.16,649.18,3.83604247]
[1749437580952,0.30761658,650.16,649.2,3.83604247]
[1749437581857,0.30761658,650.16,649.0,0.3081664]
[1749437581858,0.30761658,650.16,649.19,3.83604247]
[1749437585656,0.30761658,650.16,649.2,3.83604247]
[1749437585862,0.30761658,650.16,649.17,3.83604247]
[1749437586752,0.30761658,650.16,649.2,3.83604247]
[1749437587156,0.30761658,650.16,649.21,3.83604247]
[1749437587760,0.30761658,650.16,649.2,3.83604247]
[1749437588156,0.30761658,650.16,649.0,0.3081664]
[1749437588157,0.30761658,650.16,649.16,3.83604247]
[1749437588659,0.30761658,650.16,649.17,3.83604247]
[1749437589056,0.30761658,650.16,649.07,3.83604247]
[1749437589554,0.30761658,650.16,649.0,0.3081664]
[1749437589555,0.30761658,650.16,649.12,3.83604247]
[1749437591357,0.30761658,650.16,649.13,3.83604247]
[1749437591758,0.30761658,650.16,649.12,3.83604247]
[1749437592160,0.30761658,650.16,649.05,3.83604247]
[1749437592361,0.30761658,650.16,649.05,4.14418514]
[1749437593156,0.30761658,650.16,649.05,0.30814267]
[1749437598257,0.30761658,650.16,649.07,3.83604247]
[1749437598655,0.30761658,650.16,649.08,3.83604247]
[1749437599957,0.30761658,650.16,649.12,3.83604247]
[1749437600358,0.30761658,650.16,649.15,3.83604247]
[1749437600758,0.30761658,650.16,649.17,3.83604247]
[1749437601658,0.30761658,650.16,649.21,3.83604247]
[1749437602163,0.30761658,650.16,649.24,3.83604247]
[1749437602962,0.30761658,650.16,649.35,3.83604247]
[1749437603662,0.26778191,649.96,649.34,3.83604247]
[1749437604361,0.26778191,649.96,649.36,3.83604247]
[1749437605362,0.26778191,649.96,649.35,3.83604247]
[1749437607965,0.26778191,649.96,649.36,3.83604247]
[1749437609762,0.26778191,649.96,649.42,3.83604247]
[1749437610365,0.26778191,649.96,649.38,3.83604247]
[1749437611270,0.26778191,649.96,649.39,3.83604247]
[1749437611671,0.26778191,649.96,649.37,3.83604247]
[1749437611966,0.26778191,649.96,649.31,3.83604247]
[1749437613466,0.26778191,649.96,649.32,3.83604247]
[1749437613870,0.26778191,649.96,649.31,3.83604247]
[1749437616373,0.26778191,649.96,649.32,3.83604247]
[1749437617577,0.26778191,649.96,649.31,3.83604247]
[1749437618075,0.26778191,649.96,649.08,5.37045945]
[1749437618076,0.26778191,649.96,649.37,3.83604247]
[1749437620186,0.26778191,649.96,649.41,3.83604247]
[1749437621184,0.26778191,649.96,649.43,3.83604247]
[1749437622085,0.26778191,649.96,649.48,3.83604247]
[1749437625587,0.26778191,649.96,649.47,3.83604247]
[1749437626888,0.26778191,649.96,649.48,3.83604247]
[1749437627991,0.26778191,649.96,649.47,3.83604247]
[1749437628290,0.26778191,649.96,649.41,3.83604247]
[1749437628786,0.26778191,649.96,649.42,3.83604247]
[1749437629591,0.26778191,649.96,649.41,3.83604247]
[1749437630790,0.26778191,649.96,649.32,3.83604247]
[1749437632390,0.26778191,649.96,649.31,3.83604247]
[1749437632690,0.26778191,649.96,649.3,3.83604247]
[1749437633993,0.26778191,649.96,649.26,3.83604247]
[1749437634494,0.26778191,649.96,649.27,3.83604247]
[1749437638392,0.26778191,649.96,649.31,3.83604247]
[1749437638691,0.26778191,649.96,649.05,0.30814267]
[1749437638692,0.26778191,649.96,649.28,3.83604247]
[1749437639596,0.26778191,649.96,649.27,3.83604247]
[1749437640096,0.26778191,649.96,649.28,3.83604247]
[1749437640900,0.26778191,649.96,649.32,3.83604247]
[1749437641795,0.26778191,649.96,649.3,3.83604247]
[1749437642701,0.26778191,649.96,649.32,3.83604247]
[1749437643606,0.26778191,649.96,649.18,3.83604247]
[1749437644104,0.26778191,649.96,649.2,3.83604247]
[1749437645104,0.26778191,649.96,649.21,3.83604247]
[1749437645401,0.26778191,649.96,649.22,3.83604247]
[1749437645999,0.26778191,649.96,649.19,3.83604247]
[1749437647303,0.26778191,649.96,649.2,3.83604247]
[1749437647600,0.26778191,649.96,649.21,3.83604247]
[1749437648804,0.26778191,649.96,649.22,3.83604247]
[1749437649206,0.30761658,650.16,649.22,3.83604247]
[1749437649403,1.11382774,650.45,649.25,3.83604247]
[1749437649700,0.26774174,650.04,649.25,3.83604247]
[1749437649905,1.26609766,650.46,649.25,3.83604247]
[1749437650305,0.26773865,650.04,649.26,3.83604247]
[1749437650506,1.26609766,650.46,649.26,3.83604247]
[1749437650706,0.26773762,650.16,649.26,3.83604247]
[1749437650906,0.26773762,650.16,649.25,3.83604247]
[1749437651807,0.26773762,650.16,649.26,3.83604247]
[1749437652204,0.26773762,650.16,649.27,3.83604247]
[1749437653604,0.26773762,650.16,649.4,3.83604247]
[1749437655306,0.26773762,650.16,649.16,5.37045945]
[1749437655307,0.26773762,650.16,649.37,3.83604247]
[1749437655710,0.26773762,650.16,649.12,5.37045945]
[1749437655711,0.26773762,650.16,649.47,3.83604247]
[1749437656208,0.26773762,650.16,649.48,3.83604247]
[1749437656907,0.26773762,650.16,649.49,3.83604247]
[1749437657609,0.26773762,650.16,649.45,3.83604247]
[1749437658108,0.26773762,650.16,649.42,3.83604247]
[1749437659512,0.26773762,650.16,649.43,3.83604247]
[1749437660916,0.26773762,650.16,649.44,3.83604247]
[1749437664316,0.26773762,650.16,649.45,3.83604247]
[1749437665318,0.26773762,650.16,649.49,3.83604247]
[1749437665716,0.26773762,650.16,649.48,3.83604247]
[1749437667520,0.26773762,650.16,649.51,3.83604247]
[1749437668123,0.26773762,650.16,649.56,3.83604247]
[1749437670723,0.26773762,650.16,649.38,3.83604247]
[1749437674426,0.26773762,650.16,649.4,3.83604247]
[1749437676528,0.26773762,650.16,649.39,3.83604247]
[1749437677626,0.26773762,650.16,649.35,3.83604247]
[1749437678329,0.26773762,650.16,649.3,3.83604247]
[1749437680128,0.26773762,650.16,649.31,3.83604247]
[1749437680528,0.26773762,650.16,649.44,3.83604247]
[1749437681135,0.26773762,650.16,649.21,5.37045945]
[1749437681136,0.26773762,650.16,649.43,3.83604247]
[1749437685730,0.26773762,650.16,649.44,3.83604247]
[1749437686433,0.26773762,650.16,649.45,3.83604247]
[1749437687438,0.26773762,650.16,649.52,3.83604247]
[1749437688237,0.26773762,650.16,649.53,3.83604247]
[1749437691438,0.26773762,650.16,649.54,3.83604247]
[1749437698940,0.26773762,650.16,649.52,3.83604247]
[1749437701645,0.26773762,650.16,649.49,3.83604247]
[1749437702645,0.26773762,650.16,649.48,3.83604247]
[1749437703149,0.26773762,650.16,649.47,3.83604247]
[1749437703647,0.26773762,650.16,649.41,3.83604247]
[1749437704450,0.26773762,650.16,649.4,3.83604247]
[1749437704849,0.26773762,650.16,649.41,3.83604247]
[1749437705747,0.26773762,650.16,649.4,3.83604247]
[1749437706650,0.26773762,650.16,649.41,3.83604247]
[1749437707054,0.26773762,650.16,649.42,3.83604247]
[1749437708454,0.26773762,650.16,649.51,3.83604247]
[1749437708953,0.26773762,650.16,649.5,3.83604247]
[1749437709355,0.26773762,650.16,649.48,3.83604247]
[1749437711157,0.26773762,650.16,649.39,3.83604247]
[1749437711555,0.26773762,650.16,649.41,3.83604247]
[1749437712559,0.26773762,650.16,649.42,3.83604247]
[1749437713461,0.26773762,650.16,649.44,3.83604247]
[1749437714957,0.26773762,650.16,649.45,3.83604247]
[1749437715762,0.26773762,650.16,649.44,3.83604247]
[1749437718358,0.26773762,650.16,649.43,3.83604247]
[1749437718760,0.26773762,650.16,649.36,3.83604247]
[1749437719163,0.26773762,650.16,649.37,3.83604247]
[1749437719563,0.26773762,650.16,649.11,5.37045945]
[1749437719564,0.26773762,650.16,649.38,3.83604247]
[1749437720664,0.26773762,650.16,649.35,3.83604247]
[1749437721064,0.26773762,650.16,649.45,3.83604247]
[1749437721966,0.26773762,650.16,649.46,3.83604247]
[1749437722865,0.26773762,650.16,649.47,3.83604247]
[1749437723265,0.26773762,650.16,649.46,3.83604247]
[1749437724164,0.26773762,650.16,649.42,3.83604247]
[1749437724564,0.26773762,650.16,649.43,3.83604247]
[1749437725662,0.26773762,650.16,649.44,3.83604247]
[1749437726062,0.26773762,650.16,649.43,3.83604247]
[1749437726466,0.26773762,650.16,649.44,3.83604247]
[1749437728169,0.26773762,650.16,649.22,3.83604247]
[1749437728466,0.26773762,650.16,649.23,0.30805723]
[1749437728665,0.26773762,650.16,649.25,3.83604247]
[1749437728869,0.26773762,650.16,649.26,0.308043]
[1749437729069,0.26773762,650.16,649.26,4.14408547]
[1749437729464,0.26773762,650.16,649.28,3.83604247]
[1749437729667,0.26773762,650.16,649.28,4.14407598]
[1749437730866,0.26773762,650.16,649.28,0.30803351]
[1749437737977,0.26773762,650.16,649.33,3.83604247]
[1749437738872,0.26773762,650.16,649.42,3.83604247]
[1749437739272,0.26773762,650.16,649.43,3.83604247]
[1749437739877,0.26773762,650.16,649.28,0.30803351]
[1749437739878,0.26773762,650.16,649.42,3.83604247]
[1749437740775,0.26773762,650.16,649.41,3.83604247]
[1749437741078,0.26773762,650.16,649.42,3.83604247]
[1749437742479,0.26773762,650.16,649.43,3.83604247]
[1749437742879,0.26773762,650.16,649.41,3.83604247]
[1749437743384,0.26773762,650.16,649.52,3.83604247]
[1749437745989,0.26773762,650.16,649.51,3.83604247]
[1749437746690,0.26773762,650.16,649.52,3.83604247]
[1749437746990,0.26773762,650.16,649.54,3.83604247]
[1749437747494,0.26773762,650.16,649.47,3.83604247]
[1749437748790,0.26773762,650.16,649.4,3.83604247]
[1749437750091,0.26773762,650.16,649.39,3.83604247]
[1749437751496,0.26773762,650.16,649.38,3.83604247]
[1749437752897,0.26773762,650.16,649.41,3.83604247]
[1749437754199,0.26773762,650.16,649.4,3.83604247]
[1749437756499,0.26773762,650.16,649.41,3.83604247]
[1749437757401,0.26773762,650.16,649.48,3.83604247]
[1749437757798,0.26773762,650.16,649.47,3.83604247]
[1749437758702,0.26773762,650.16,649.48,3.83604247]
[1749437759102,0.26773762,650.16,649.49,3.83604247]
[1749437759499,0.26773762,650.16,649.48,3.83604247]
[1749437760203,0.26773762,650.16,649.5,3.83604247]
[1749437761503,1.11476283,650.72,649.5,3.83604247]
[1749437761700,1.4221194,650.71,649.5,3.83604247]
[1749437762001,1.42212413,650.7,649.48,3.83604247]
[1749437762198,0.30736602,650.69,649.48,3.83604247]
[1749437762400,0.30736602,650.69,649.49,3.83604247]
[1749437762902,0.30736602,650.69,649.4,3.83604247]
[1749437763104,1.42212885,650.69,649.4,3.83604247]
[1749437763402,0.30736602,650.69,649.4,3.83604247]
[1749437764104,0.30736602,650.69,649.41,3.83604247]
[1749437764502,1.11476283,650.68,649.41,3.83604247]
[1749437764701,0.30737547,650.67,649.41,3.83604247]
[1749437766303,0.30737547,650.67,649.42,3.83604247]
[1749437767403,0.30737547,650.67,649.44,3.83604247]
[1749437767803,0.30737547,650.67,649.46,3.83604247]
[1749437768605,1.11282998,650.66,649.46,3.83604247]
[1749437768804,1.4202149,650.65,649.39,3.83604247]
[1749437769005,1.42021962,650.64,649.39,3.83604247]
[1749437769204,1.11282998,650.63,649.34,3.83604247]
[1749437769407,1.11282998,650.62,649.34,3.83604247]
[1749437769706,1.11282998,650.61,649.34,3.83604247]
[1749437770003,1.11282998,650.6,649.34,3.83604247]
[1749437770205,1.11282998,650.59,649.34,3.83604247]
[1749437770407,1.11282998,650.58,649.34,3.83604247]
[1749437770605,1.11282998,650.57,649.34,3.83604247]
[1749437770809,1.11282998,650.56,649.34,3.83604247]
[1749437771008,1.11282998,650.55,649.33,3.83604247]
[1749437771205,1.11282998,650.54,649.33,3.83604247]
[1749437771505,1.11282998,650.63,649.32,3.83604247]
[1749437771710,1.11282998,650.62,649.32,4.144057]
[1749437771910,1.11282998,650.61,649.33,3.83604247]
[1749437772107,1.11282998,650.6,649.33,3.83604247]
[1749437772307,1.11282998,650.59,649.33,3.83604247]
[1749437772514,1.11282998,650.58,649.33,3.83604247]
[1749437772709,1.11282998,650.57,649.33,3.83604247]
[1749437772913,1.11282998,650.56,649.39,3.83604247]
[1749437773110,1.11282998,650.55,649.39,3.83604247]
[1749437773413,1.11282998,650.54,649.39,3.83604247]
[1749437773613,1.11282998,650.63,649.39,3.83604247]
[1749437773810,1.11282998,650.62,649.39,3.83604247]
[1749437774013,1.11282998,650.61,649.39,3.83604247]
[1749437774210,1.11282998,650.6,649.39,3.83604247]
[1749437774413,1.11282998,650.59,649.39,3.83604247]
[1749437774612,1.11282998,650.58,649.39,3.83604247]
[1749437774814,1.11282998,650.57,649.39,3.83604247]
[1749437775011,0.30738964,650.64,649.39,3.83604247]
[1749437775012,1.11282998,650.56,649.39,3.83604247]
[1749437775312,1.11282998,650.55,649.39,3.83604247]
[1749437775510,1.11282998,650.54,649.39,3.83604247]
[1749437775717,1.11282998,650.53,649.39,3.83604247]
[1749437775916,1.11282998,650.63,649.39,3.83604247]
[1749437776116,0.26769128,650.25,649.39,3.83604247]
[1749437776513,1.11282998,650.6,649.38,3.83604247]
[1749437776815,1.11282998,650.59,649.38,3.83604247]
[1749437777019,1.11282998,650.58,649.38,3.83604247]
[1749437777210,1.11282998,650.57,649.38,3.83604247]
[1749437777415,1.11282998,650.56,649.39,3.83604247]
[1749437777615,1.11282998,650.55,649.39,3.83604247]
[1749437777915,0.26768819,650.28,649.39,3.83604247]
[1749437778312,0.26768819,650.28,649.4,3.83604247]
[1749437778713,0.26768819,650.28,649.32,0.30801453]
[1749437778714,0.26768819,650.28,649.39,3.83604247]
[1749437779219,0.26768819,650.28,649.45,3.83604247]
[1749437779716,0.26768819,650.28,649.44,3.83604247]
[1749437781015,0.26768819,650.28,649.32,0.30801453]
[1749437781016,0.26768819,650.28,649.46,3.83604247]
[1749437781418,0.26768819,650.28,649.49,3.83604247]
[1749437781817,0.26768819,650.28,649.5,3.83604247]
[1749437782826,0.26768819,650.28,649.51,3.83604247]
[1749437784623,0.26768819,650.28,649.53,3.83604247]
[1749437785524,0.26768819,650.28,649.54,3.83604247]
[1749437786322,0.26768819,650.28,649.59,3.83604247]
[1749437786922,0.26768819,650.28,649.6,3.83604247]
[1749437787821,0.26768819,650.28,649.56,3.83604247]
[1749437788525,0.26768819,650.28,649.64,3.83604247]
[1749437789122,0.26768819,650.28,649.65,3.83604247]
[1749437789526,0.26768819,650.28,649.69,3.83604247]
[1749437789921,0.26768819,650.28,649.68,3.83604247]
[1749437790522,0.26768819,650.28,649.59,3.83604247]
[1749437790825,0.26768819,650.28,649.53,3.83604247]
[1749437797532,0.26768819,650.28,649.57,3.83604247]
[1749437798932,0.26768819,650.28,649.52,3.83604247]
[1749437800530,0.26768819,650.28,649.49,3.83604247]
[1749437800729,0.26768819,650.28,649.54,3.83604247]
[1749437804836,0.26768819,650.28,649.51,3.83604247]
[1749437806534,0.26768819,650.28,649.52,3.83604247]
[1749437808331,0.26768819,650.28,649.45,3.83604247]
[1749437810134,0.26768819,650.28,649.52,3.83604247]
[1749437813836,0.26768819,650.28,649.53,3.83604247]
[1749437814636,0.26768819,650.28,649.55,3.83604247]
[1749437815440,0.26768819,650.28,649.57,3.83604247]
[1749437816440,0.26768819,650.28,649.56,3.83604247]
[1749437817444,0.26768819,650.28,649.57,3.83604247]
[1749437818449,0.26768819,650.28,649.66,3.83604247]
[1749437818640,0.26768819,650.28,649.65,3.83604247]
[1749437819541,0.26768819,650.28,649.56,3.83604247]
[1749437821544,0.26768819,650.28,649.57,3.83604247]
[1749437821949,0.26768819,650.28,649.59,3.83604247]
[1749437823751,0.26768819,650.28,649.6,3.83604247]
[1749437828752,0.26768819,650.28,649.64,3.83604247]
[1749437829152,0.26768819,650.28,649.41,5.37045945]
[1749437829656,0.26768819,650.28,649.33,3.83604247]
[1749437834155,0.26768819,650.28,649.32,3.83604247]
[1749437838262,0.26768819,650.28,649.33,3.83604247]
[1749437839160,0.26768819,650.28,649.65,3.83604247]
[1749437840559,0.26768819,650.28,649.14,0.26769128]
[1749437840760,0.26768819,650.28,649.15,0.3080952]
[1749437849863,0.26768819,650.28,649.41,3.83604247]
[1749437850570,0.26768819,650.28,649.4,3.83604247]
[1749437851268,0.26768819,650.28,649.42,3.83604247]
[1749437851668,0.26768819,650.28,649.41,3.83604247]
[1749437854072,0.26768819,650.28,649.53,3.83604247]
[1749437854575,0.26768819,650.28,649.52,3.83604247]
[1749437857672,0.26768819,650.28,649.49,3.83604247]
[1749437858474,0.26768819,650.28,649.5,3.83604247]
[1749437858871,0.26768819,650.28,649.46,3.83604247]
[1749437859878,0.26768819,650.28,649.43,3.83604247]
[1749437861175,0.26768819,650.28,649.44,3.83604247]
[1749437862881,0.26768819,650.28,649.46,3.83604247]
[1749437864481,0.26768819,650.28,649.45,3.83604247]
[1749437866183,0.26768819,650.28,649.24,5.37045945]
[1749437866583,0.26768819,650.28,649.15,0.3080952]
[1749437878603,0.26768819,650.28,649.16,3.83604247]
[1749437878808,0.26768819,650.28,649.17,0.3080857]
[1749437879198,0.26768819,650.28,649.2,3.83604247]
[1749437879402,0.26768819,650.28,649.21,0.30806672]
[1749437879605,0.26768819,650.28,649.38,3.83604247]
[1749437880698,0.26768819,650.28,649.46,3.83604247]
[1749437881502,0.26768819,650.28,649.47,3.83604247]
[1749437883306,0.26768819,650.28,649.5,3.83604247]
[1749437884204,0.26768819,650.28,649.52,3.83604247]
[1749437884701,0.26768819,650.28,649.51,3.83604247]
[1749437885705,0.26768819,650.28,649.53,3.83604247]
[1749437886105,0.26768819,650.28,649.52,3.83604247]
[1749437886406,0.26768819,650.28,649.53,3.83604247]
[1749437888207,0.26768819,650.28,649.51,3.83604247]
[1749437888703,0.26768819,650.28,649.56,3.83604247]
[1749437889104,0.26768819,650.28,649.52,3.83604247]
[1749437889809,0.26768819,650.28,649.55,3.83604247]
[1749437891510,0.26768819,650.28,649.56,3.83604247]
[1749437892910,0.26768819,650.28,649.57,3.83604247]
[1749437893311,0.26768819,650.28,649.58,3.83604247]
[1749437894514,0.26768819,650.28,649.59,3.83604247]
[1749437895010,0.26768819,650.28,649.6,3.83604247]
[1749437895618,0.26768819,650.28,649.59,3.83604247]
[1749437896515,0.26768819,650.28,649.6,3.83604247]
[1749437897315,0.26768819,650.28,649.58,3.83604247]
[1749437898219,0.26768819,650.28,649.59,3.83604247]
[1749437899118,0.26768819,650.28,649.6,3.83604247]
[1749437900020,0.26768819,650.28,649.57,3.83604247]
[1749437901322,0.26768819,650.28,649.56,3.83604247]
[1749437901822,0.26768819,650.28,649.55,3.83604247]
[1749437902317,0.26768819,650.28,649.54,3.83604247]
[1749437904018,0.26768819,650.28,649.55,3.83604247]
[1749437904419,0.26768819,650.28,649.54,3.83604247]
[1749437904916,0.26768819,650.28,649.55,3.83604247]
[1749437905316,0.26768819,650.28,649.56,3.83604247]
[1749437907221,0.26768819,650.28,649.59,3.83604247]
[1749437907718,0.26768819,650.28,649.58,3.83604247]
[1749437908522,0.26768819,650.28,649.54,3.83604247]
[1749437908919,0.26768819,650.28,649.53,3.83604247]
[1749437909922,0.26768819,650.28,649.57,3.83604247]
[1749437911820,0.26768819,650.28,649.58,3.83604247]
[1749437912321,0.26768819,650.28,649.59,3.83604247]
[1749437914021,0.26768819,650.28,649.6,3.83604247]
[1749437915223,0.26768819,650.28,649.5,3.83604247]
[1749437916123,0.26768819,650.28,649.51,3.83604247]
[1749437916730,0.26768819,650.28,649.5,3.83604247]
[1749437917526,0.26768819,650.28,649.47,3.83604247]
[1749437918930,0.26768819,650.28,649.48,3.83604247]
[1749437922036,0.26768819,650.28,649.47,3.83604247]
[1749437922630,0.26768819,650.28,649.42,3.83604247]
[1749437923429,0.26768819,650.28,649.43,3.83604247]
[1749437923833,0.26768819,650.28,649.46,3.83604247]
[1749437924630,0.26768819,650.28,649.45,3.83604247]
[1749437925134,0.26768819,650.28,649.51,3.83604247]
[1749437925632,0.26768819,650.28,649.53,3.83604247]
[1749437926635,0.26768819,650.28,649.54,3.83604247]
[1749437927435,0.26768819,650.28,649.57,3.83604247]
[1749437927835,0.26768819,650.28,649.56,3.83604247]
[1749437928340,0.26768819,650.28,649.58,3.83604247]
[1749437928733,0.26768819,650.28,649.53,3.83604247]
[1749437929236,0.26768819,650.28,649.61,3.83604247]
[1749437929636,0.26768819,650.28,649.59,3.83604247]
[1749437932338,0.26768819,650.28,649.64,3.83604247]
[1749437932634,0.26768819,650.28,649.68,3.83604247]
[1749437933739,0.26768819,650.28,649.67,3.83604247]
[1749437934137,0.26768819,650.28,649.68,3.83604247]
[1749437934535,0.26768819,650.28,649.62,3.83604247]
[1749437935540,0.26768819,650.28,649.37,5.37045945]
[1749437935541,0.26768819,650.28,649.63,3.83604247]
[1749437937741,0.26768819,650.28,649.62,3.83604247]
[1749437938742,0.26768819,650.28,649.67,3.83604247]
[1749437939042,0.26768819,650.28,649.62,3.83604247]
[1749437939638,0.26768819,650.28,649.63,3.83604247]
[1749437941442,0.26768819,650.28,649.65,3.83604247]
[1749437942143,0.26768819,650.28,649.61,3.83604247]
[1749437942437,0.26768819,650.28,649.6,3.83604247]
[1749437944742,0.26768819,650.28,649.67,3.83604247]
[1749437947446,0.26768819,650.28,649.68,3.83604247]